bitfinex/quotes_ETHUSD_20251019
["timestamp","ask_amount","ask_price","bid_price","bid_amount"]
[1760910597697,7.87926318,3998.5,3998.4,0.002]
[1760910599771,8.51286318,3998.5,3998.4,0.002]
[1760910600102,10.38487699,3998.5,3998.4,0.002]
[1760910601103,12.86743499,3998.5,3998.4,0.002]
[1760910601446,18.20188028,3998.5,3998.4,0.002]
[1760910601781,18.38058666,3998.5,3998.4,0.002]
[1760910602105,18.48058666,3998.5,3998.4,0.002]
[1760910602300,30.52682766,3998.5,3998.4,0.002]
[1760910602710,29.94880166,3998.5,3998.4,0.002]
[1760910602917,24.88803366,3998.5,3998.4,0.002]
[1760910603410,10.27130666,3998.5,3998.4,0.002]
[1760910603615,25.14606866,3998.5,3998.4,0.002]
[1760910604005,25.04606866,3998.5,3998.4,0.002]
[1760910604200,25.48198186,3998.5,3998.4,0.002]
[1760910604406,27.01035986,3998.5,3998.4,0.002]
[1760910605329,10.70721986,3998.5,3998.4,0.002]
[1760910605637,11.02484462,3998.0,3997.9,0.002]
[1760910605926,18.85902905,3998.0,3997.9,0.002]
[1760910606227,19.88495325,3998.0,3997.9,0.002]
[1760910606531,19.90997925,3998.0,3997.9,0.002]
[1760910607320,20.37327925,3998.0,3997.9,0.002]
[1760910607522,27.41311872,3998.0,3997.9,0.002]
[1760910608513,27.41063572,3998.0,3997.9,0.002]
[1760910609048,27.45423493,3998.0,3997.9,0.002]
[1760910609615,15.49685393,3998.0,3997.9,0.002]
[1760910609813,15.49685393,3998.0,3997.9,0.4633]
[1760910612133,15.49685393,3998.0,3997.9,0.002]
[1760910616950,15.49685393,3998.0,3997.9,0.468]
[1760910617645,15.10452973,3998.0,3997.9,0.468]
[1760910620251,15.57252973,3998.0,3997.9,0.468]
[1760910620936,15.96484622,3998.0,3997.9,0.468]
[1760910622040,15.89839122,3998.0,3997.9,0.401545]
[1760910624941,4.98771318,3997.9,3997.8,0.002]
[1760910625122,7.24542362,3997.9,3997.8,0.468]
[1760910625548,7.71342362,3997.9,3997.8,0.468]
[1760910628158,7.71342362,3997.9,3997.8,0.002]
[1760910629554,12.40660805,3997.9,3997.8,0.468]
[1760910630656,9.90529487,3997.9,3997.8,0.468]
[1760910630952,9.43729487,3997.9,3997.8,0.468]
[1760910632056,11.93860805,3997.9,3997.8,0.468]
[1760910634850,11.15778461,3997.9,3997.8,0.468]
[1760910639236,7.24542362,3997.9,3997.8,0.468]
[1760910639439,3.142,3998.0,3997.8,0.468]
[1760910639749,3.142,3998.0,3997.9,2.50131318]
[1760910640149,3.142,3998.0,3997.9,2.95581318]
[1760910640474,3.142,3998.0,3997.9,3.70804071]
[1760910642043,0.001,3998.0,3997.9,4.32938793]
[1760910642244,0.423,3998.0,3997.9,4.32938793]
[1760910647875,0.423,3998.0,3997.9,8.14738793]
[1760910649474,0.423,3998.0,3997.9,8.27218793]
[1760910650477,0.001,3998.0,3997.9,8.27218793]
[1760910657378,0.001,3998.0,3997.9,10.00018793]
[1760910669882,0.001,3998.0,3997.9,10.00218793]
[1760910672482,0.001,3998.0,3997.9,8.27418793]
[1760910681834,0.001,3998.0,3997.9,7.81968793]
[1760910682701,0.001,3998.0,3997.9,9.99678793]
[1760910684811,0.001,3998.0,3997.9,9.54768793]
[1760910686795,0.001,3998.0,3997.9,9.99678793]
[1760910687622,0.001,3998.0,3997.9,6.17878793]
[1760910688241,0.001,3998.0,3997.9,5.72968793]
[1760910689644,0.001,3998.0,3997.9,6.17878793]
[1760910690517,0.001,3998.0,3997.9,4.00168793]
[1760910690717,0.001,3998.0,3997.9,6.05398793]
[1760910696819,0.001,3998.0,3997.9,10.74397191]
[1760910697755,0.001,3998.0,3997.9,14.56197191]
[1760910699431,0.001,3998.0,3997.9,9.87198793]
[1760910700759,0.001,3998.0,3997.9,9.99678793]
[1760910701360,0.001,3998.0,3997.9,9.54768793]
[1760910701560,0.001,3998.0,3997.9,9.98698793]
[1760910710472,0.001,3998.0,3997.9,8.7954604]
[1760910710677,0.001,3998.0,3997.9,9.2347604]
[1760910710970,0.001,3998.0,3997.9,9.33501919]
[1760910711363,0.001,3998.8,3998.7,2.50081276]
[1760910711764,0.001,3998.8,3998.7,2.62561276]
[1760910711966,0.1,3998.8,3998.7,2.62561276]
[1760910713574,0.001,3998.8,3998.7,2.62561276]
[1760910715279,0.001,3998.8,3998.7,6.44361276]
[1760910720889,0.001,3998.8,3998.7,8.12096204]
[1760910723889,0.001,3998.8,3998.7,8.56026204]
[1760910724274,0.001,3998.8,3998.7,8.12096204]
[1760910728689,0.001,3998.8,3998.7,4.30296204]
[1760910728895,0.001,3998.8,3998.7,4.32797016]
[1760910735502,0.001,3998.8,3998.7,4.30296204]
[1760910735904,0.001,3998.8,3998.7,4.32797016]
[1760910736100,0.001,3998.8,3998.7,6.52007016]
[1760910736302,0.001,3998.8,3998.7,6.59530651]
[1760910737084,0.001,3999.2,3998.7,6.59530651]
[1760910737085,0.001,3999.2,3999.1,2.50056262]
[1760910737271,0.001,3999.2,3999.1,3.02568918]
[1760910737472,0.001,3999.9,3999.3,1.728]
[1760910737696,0.001,3999.9,3999.6,4.68998398]
[1760910737893,0.001,3999.9,3999.8,2.624925]
[1760910738375,0.001,3999.9,3999.8,3.089025]
[1760910738575,0.001,3999.9,3999.8,3.44285418]
[1760910738774,0.001,3999.9,3999.8,3.54307227]
[1760910749210,0.001,3999.9,3999.8,3.07897227]
[1760910750903,0.001,3999.9,3999.8,3.54307227]
[1760910753121,0.001,3999.9,3999.8,3.08097227]
[1760910753294,0.001,3999.9,3999.8,3.54507227]
[1760910753495,0.001,3999.9,3999.8,7.36307227]
[1760910756524,1e-08,4000.3,4000.2,2.499875]
[1760910756724,1e-08,4000.3,4000.2,19.75997469]
[1760910756924,1e-08,4000.3,4000.2,20.19297594]
[1760910757232,0.001,4001.0,4000.9,4.86103762]
[1760910757434,0.001,4001.0,4000.9,12.15211448]
[1760910757735,0.001,4001.0,4000.9,12.61011448]
[1760910757896,0.001,4001.0,4000.9,14.41136376]
[1760910761228,0.39186534,4003.4,4001.1,0.6336]
[1760910761428,0.225,4003.1,4003.0,2.49811035]
[1760910765121,0.11,4003.6,4003.1,2.498064]
[1760910765324,0.099,4003.1,4002.2,2.49862575]
[1760910765650,0.127,4002.3,4002.2,2.49862575]
[1760910765818,0.2263,4002.3,4001.5,5.63047686]
[1760910766011,0.2263,4002.3,4002.2,2.49862575]
[1760910766214,0.2263,4002.3,4001.8,3.90247686]
[1760910766215,0.2263,4002.3,4002.0,0.127]
[1760910766444,0.127,4002.3,4002.2,2.49862575]
[1760910767040,0.2263,4002.3,4002.2,2.49862575]
[1760910770413,0.2273,4002.3,4002.2,2.49862575]
[1760910771051,0.2273,4002.3,4001.5,2.49902647]
[1760910771052,0.57641,4002.3,4001.5,2.49902647]
[1760910771251,0.1237,4001.6,4001.0,0.75148135]
[1760910771549,0.0995,4001.5,4001.2,2.49920189]
[1760910771754,0.0995,4001.4,4001.2,2.49920189]
[1760910771950,0.0995,4001.3,4001.1,2.49930766]
[1760910772121,0.0995,4001.2,4001.1,2.49930766]
[1760910772322,0.0995,4001.2,4001.0,2.49937209]
[1760910772639,0.0995,4001.1,4001.0,2.49937209]
[1760910773259,0.0995,4001.1,4000.6,2.49956924]
[1760910773462,0.1446,4000.9,4000.5,2.49967456]
[1760910773761,0.1,4000.8,4000.5,2.49967456]
[1760910773924,0.1,4000.7,4000.6,2.49961125]
[1760910774454,0.1,4000.7,4000.5,2.49967903]
[1760910774654,0.1446,4000.9,4000.5,2.49967903]
[1760910774655,0.1,4000.6,4000.5,2.49967903]
[1760910775960,0.1446,4000.9,4000.8,2.49950009]
[1760910776159,0.1237,4001.6,4000.7,3.90247686]
[1760910776330,3.142,4001.5,4001.3,2.49918776]
[1760910776726,3.64412717,4001.5,4001.3,2.49918776]
[1760910780837,3.54372717,4001.5,4001.4,2.4991253]
[1760910782375,3.142,4001.5,4001.4,2.4991253]
[1760910782580,3.142,4001.5,4001.4,2.9571253]
[1760910782883,0.1248,4002.1,4002.0,2.49875062]
[1760910783178,3.2668,4002.1,4002.0,2.49875062]
[1760910801415,3.2668,4002.1,4001.7,3.818]
[1760910801620,0.1246,4001.9,4001.7,3.818]
[1760910802116,0.0998,4001.8,4001.7,3.818]
[1760910806418,0.0998,4001.8,4001.4,2.49912489]
[1760910806583,3.141,4001.7,4001.4,2.49912489]
[1760910807116,3.141,4001.7,4001.0,0.002]
[1760910807319,3.141,4001.7,4001.5,2.49902382]
[1760910807521,3.141,4001.7,4001.1,0.6537]
[1760910807522,3.141,4001.7,4001.6,2.49900039]
[1760910812300,3.4551,4001.7,4001.6,2.49900039]
[1760910812501,3.141,4001.7,4001.6,2.49900039]
[1760910812734,3.141,4001.7,4001.6,2.93650039]
[1760910817608,3.141,4001.7,4001.6,2.49900039]
[1760910821715,3.142,4001.7,4001.6,2.49900039]
[1760910823018,1.728,4001.6,4001.0,0.002]
[1760910823230,0.02095398,4001.5,4001.1,2.49925356]
[1760910824027,0.02095398,4001.5,4001.2,2.49924434]
[1760910834639,0.1248,4001.2,4001.1,2.4992972]
[1760910834840,3.2638,4001.2,4001.1,2.9626972]
[1760910835557,4.9918,4001.2,4001.0,0.002]
[1760910835758,1.84845398,4001.1,4001.0,0.002]
[1760910837758,4.96041268,4001.1,4001.0,0.002]
[1760910837960,4.98136666,4001.1,4001.0,0.002]
[1760910839365,4.96041268,4001.1,4001.0,0.002]
[1760910839565,6.55910483,4001.1,4001.0,0.002]
[1760910839870,6.53815085,4001.1,4001.0,0.002]
[1760910841146,15.50001985,4001.1,4001.0,0.002]
[1760910841360,14.21949085,4001.1,4001.0,0.002]
[1760910841688,8.65835885,4001.1,4001.0,0.002]
[1760910841850,6.43865085,4001.1,4001.0,0.002]
[1760910842768,6.53815085,4001.1,4001.0,0.002]
[1760910845658,6.43865085,4001.1,4001.0,0.002]
[1760910848886,6.53815085,4001.1,4001.0,0.002]
[1760910849052,6.43865085,4001.1,4001.0,0.002]
[1760910850575,6.83067668,4001.1,4001.0,0.002]
[1760910853575,13.6650501,4001.1,4001.0,0.002]
[1760910853782,13.8265501,4001.1,4001.0,0.002]
[1760910853955,11.6139881,4001.1,4001.0,0.002]
[1760910855759,11.6149881,4001.1,4001.0,0.002]
[1760910859061,11.5154881,4001.1,4001.0,0.002]
[1760910860159,11.55905074,4001.1,4001.0,0.002]
[1760910860359,14.06906974,4001.1,4001.0,0.002]
[1760910860570,11.55905074,4001.1,4001.0,0.002]
[1760910861100,12.02805074,4001.1,4001.0,0.002]
[1760910861303,14.68736974,4001.1,4001.0,0.002]
[1760910861604,12.02805074,4001.1,4001.0,0.002]
[1760910862022,12.12755074,4001.1,4001.0,0.002]
[1760910862174,15.05516074,4001.1,4001.0,0.002]
[1760910862488,18.44678674,4001.1,4001.0,0.002]
[1760910863690,16.00616874,4001.1,4001.0,0.002]
[1760910863885,12.12755074,4001.1,4001.0,0.002]
[1760910866007,16.44256474,4001.1,4001.0,0.002]
[1760910866979,30.16439274,4001.1,4001.0,0.002]
[1760910869909,29.77236691,4001.1,4001.0,0.002]
[1760910870093,35.28499091,4001.1,4001.0,0.002]
[1760910870515,29.37152991,4001.1,4001.0,0.002]
[1760910871007,26.75028127,4001.1,4001.0,0.002]
[1760910872102,30.51845727,4001.1,4001.0,0.002]
[1760910872302,30.29300727,4001.1,4001.0,0.002]
[1760910872631,30.68511208,4001.1,4001.0,0.002]
[1760910872997,38.21902008,4001.1,4001.0,0.002]
[1760910873229,37.99352208,4001.1,4001.0,0.002]
[1760910873731,38.03709083,4001.1,4001.0,0.002]
[1760910874234,38.52290283,4001.1,4001.0,0.002]
[1760910875126,38.64817883,4001.1,4001.0,0.002]
[1760910875331,17.55621405,4000.6,4000.5,0.002]
[1760910875523,28.86664688,4000.6,4000.5,0.002]
[1760910875903,29.77132941,4000.6,4000.5,0.002]
[1760910876103,32.52985967,4000.6,4000.5,0.002]
[1760910876304,31.45655167,4000.6,4000.1,0.002]
[1760910876505,16.55889,3999.5,3998.4,0.4493]
[1760910876706,0.6336,3999.2,3998.0,0.2193]
[1760910876931,2.3616,3998.7,3998.1,0.4493]
[1760910877134,0.6336,3998.4,3998.1,0.4493]
[1760910877434,0.6336,3998.2,3998.1,0.4493]
[1760910879239,3.5943,3998.3,3998.1,0.4493]
[1760910879457,1.728,3998.2,3998.1,0.4493]
[1760910882930,1.728,3998.2,3997.9,2.50328943]
[1760910883138,0.1248,3998.0,3997.9,0.002]
[1760910883336,4.9978,3998.0,3997.9,0.002]
[1760910883642,4.9978,3998.0,3997.9,0.4513]
[1760910884563,5.89516212,3998.0,3997.9,0.4513]
[1760910884956,6.28746363,3998.0,3997.9,0.4513]
[1760910889273,6.41496014,3998.0,3997.9,0.4513]
[1760910889452,6.28746363,3998.0,3997.9,0.4513]
[1760910891551,6.28746363,3998.0,3997.9,0.002]
[1760910891963,6.28746363,3998.0,3997.9,0.4513]
[1760910892680,6.28746363,3998.0,3997.9,0.002]
[1760910892855,4.9978,3998.0,3997.9,0.4513]
[1760910900483,4.9978,3998.0,3997.9,0.002]
[1760910900785,4.9978,3998.0,3997.9,0.4513]
[1760910901773,4.9978,3998.0,3997.9,0.002]
[1760910903090,10.04681584,3998.0,3997.9,0.002]
[1760910903390,17.80833146,3998.0,3997.9,0.002]
[1760910903595,18.56076841,3998.0,3997.9,0.002]
[1760910903893,18.9531188,3998.0,3997.9,0.002]
[1760910904270,22.2184858,3998.0,3997.9,0.002]
[1760910904457,18.5822458,3998.0,3997.9,0.002]
[1760910904890,17.6048528,3998.0,3997.9,0.002]
[1760910905362,13.6679538,3998.0,3997.9,0.002]
[1760910905979,1.728,3998.0,3997.9,0.4643]
[1760910906180,3.151,3998.0,3997.9,2.96561318]
[1760910906382,3.91127649,3998.7,3998.3,2.50106223]
[1760910906592,0.001,3999.0,3998.6,0.2341]
[1760910906797,3.152,3998.9,3998.6,0.2341]
[1760910907103,1.728,3998.8,3998.7,0.4623]
[1760910907306,1.728,3998.8,3998.7,2.96311276]
[1760910908409,0.001,3999.0,3998.9,2.50068768]
[1760910908579,3.153,3999.0,3998.9,2.50068768]
[1760910908780,3.153,3999.0,3998.9,2.96298768]
[1760910909499,3.153,3999.0,3998.7,2.50079123]
[1760910910690,3.153,3999.0,3998.9,2.50068768]
[1760910910900,3.153,3999.0,3998.9,2.96298768]
[1760910911805,3.47475391,3999.0,3998.3,0.75201822]
[1760910912127,0.02095398,3998.9,3998.4,2.9560004]
[1760910912417,0.02095398,3998.9,3998.5,0.455]
[1760910912577,0.02095398,3998.9,3998.5,2.95590569]
[1760910912772,0.02095398,3998.9,3998.6,0.455]
[1760910913285,0.1248,3998.6,3998.5,2.50090569]
[1760910913487,3.152,3998.6,3998.5,2.50090569]
[1760910913682,3.152,3998.6,3998.5,2.95590569]
[1760910914403,3.152,3998.6,3998.5,3.52501107]
[1760910914800,3.152,3998.6,3998.5,2.95590569]
[1760910923443,0.1248,3998.5,3998.4,2.50094726]
[1760910923635,3.152,3998.6,3998.5,0.455]
[1760910924341,3.152,3998.6,3998.4,2.50094726]
[1760910924539,0.1248,3998.5,3998.4,2.95594726]
[1760910930219,0.1248,3998.5,3998.4,2.50094726]
[1760910931115,0.1248,3998.5,3998.4,2.95594726]
[1760910935143,0.1248,3998.5,3998.4,2.50094726]
[1760910939354,0.1248,3998.5,3998.4,2.95174726]
[1760910939654,0.1248,3998.5,3998.4,2.50294726]
[1760910944060,0.1248,3998.5,3998.4,2.95374726]
[1760910949265,3.152,3998.6,3998.5,2.50093785]
[1760910949562,3.152,3998.6,3998.5,2.95173785]
[1760910952588,0.001,3999.0,3998.9,2.50068768]
[1760910952736,3.149,3999.0,3998.9,2.50068768]
[1760910952943,3.15,3999.0,3998.9,2.95148768]
[1760910955138,3.15,3999.0,3998.9,2.50068768]
[1760910957876,3.15,3999.0,3998.9,2.95148768]
[1760910966472,3.15,3999.0,3998.9,2.50068768]
[1760910966983,3.249,3999.0,3998.9,2.50068768]
[1760910967180,3.15,3999.0,3998.9,2.50068768]
[1760910974998,3.15,3999.0,3998.9,2.50268768]
[1760910978897,3.15,3999.0,3998.9,2.94928768]
[1760910991488,3.15,3999.0,3998.9,2.50268768]
[1760910992001,3.15,3999.0,3998.9,2.94928768]
[1760910997390,3.15,3999.0,3998.9,2.50268768]
[1760910997685,3.15,3999.0,3998.9,2.93128768]
[1760911003433,3.15,3999.0,3998.9,3.47449357]
[1760911003622,0.001,3999.0,3998.9,3.47449357]
[1760911003939,0.001,3999.0,3998.9,4.35111014]
[1760911004138,0.001,3999.4,3999.0,0.408693]
[1760911004436,0.001,3999.4,3999.3,4.13812128]
[1760911004610,0.001,3999.4,3999.3,7.53846147]
[1760911004797,0.001,3999.4,3999.3,7.9420571]
[1760911005198,0.001,3999.4,3999.3,9.6700571]
[1760911006402,0.001,3999.4,3999.3,5.76253582]
[1760911015735,0.001,3999.4,3999.3,4.03453582]
[1760911015934,0.001,3999.4,3999.3,4.05954019]
[1760911016337,0.001,3999.4,3999.3,3.90973582]
[1760911016533,0.001,3999.4,3999.3,4.03453582]
[1760911016741,0.001,3999.4,3999.3,4.52253582]
[1760911019760,0.001,3999.4,3999.3,4.54754019]
[1760911020751,0.001,3999.4,3999.3,5.18114019]
[1760911020964,0.001,3999.4,3999.3,6.88413582]
[1760911021264,0.1,4001.5,4000.5,2.49968753]
[1760911021468,0.1,4001.5,4000.5,2.5246844]
[1760911021664,0.1,4001.5,4000.5,2.9532844]
[1760911021834,0.1,4001.5,4000.5,3.05348417]
[1760911026669,0.1,4001.5,4000.7,2.49956257]
[1760911026966,0.001,4001.5,4000.8,4.2786052]
[1760911027174,0.099,4001.4,4000.8,4.2786052]
[1760911027340,0.099,4001.4,4000.8,4.37880497]
[1760911027668,0.099,4001.4,4000.8,4.2786052]
[1760911027863,0.099,4001.4,4001.0,2.49937515]
[1760911028064,0.099,4001.4,4001.0,2.5243689]
[1760911028467,0.099,4001.4,4001.0,2.62456867]
[1760911029370,0.099,4001.4,4001.0,2.59957492]
[1760911030176,0.001,4001.5,4001.0,3.28766241]
[1760911030360,0.04455105,4002.3,4001.9,2.49881306]
[1760911030361,0.001,4002.3,4001.9,2.49881306]
[1760911030566,0.001,4002.3,4001.9,8.15932247]
[1760911030765,1e-08,4002.2,4002.1,2.49868818]
[1760911030940,1e-08,4002.2,4002.1,2.52367506]
[1760911031147,1e-08,4002.2,4002.1,3.11827506]
[1760911031847,1e-08,4002.2,4002.1,3.21843443]
[1760911032343,1e-08,4002.2,4002.1,0.10015937]
[1760911032344,0.09930001,4002.2,4002.1,0.10015937]
[1760911032545,0.09930001,4002.2,4002.1,2.49868818]
[1760911042379,0.22410001,4002.2,4002.1,2.49868818]
[1760911051979,0.22410001,4002.2,4001.2,0.4295]
[1760911052303,0.1248,4001.9,4001.8,2.4988755]
[1760911052467,3.148,4001.9,4001.8,2.4988755]
[1760911055904,2.740633,4001.9,4001.8,2.4988755]
[1760911056214,2.740633,4001.9,4001.1,0.2308]
[1760911056215,0.6336,4001.8,4001.1,2.49926308]
[1760911056515,0.099,4001.7,4001.0,2.49937271]
[1760911057013,0.6336,4001.8,4001.0,2.49937271]
[1760911057014,0.11995398,4001.6,4001.0,2.49937271]
[1760911057515,0.099,4001.5,4001.0,2.49937271]
[1760911057713,0.11995398,4001.4,4001.1,2.49926644]
[1760911058018,0.099,4001.3,4001.1,2.49926644]
[1760911058197,3.149,4001.2,4001.1,2.49926644]
[1760911058507,3.248,4001.2,4001.1,2.49926644]
[1760911060296,3.149,4001.2,4001.1,2.49926644]
[1760911061511,3.149,4001.2,4001.1,2.50126644]
[1760911064120,3.149,4001.2,4001.1,3.17436644]
[1760911075315,3.2738,4001.2,4001.1,3.17436644]
[1760911080555,0.1248,4001.2,4001.1,3.17436644]
[1760911080753,0.001,4001.9,4001.8,2.4988755]
[1760911080909,0.442,4001.9,4001.8,2.4988755]
[1760911081109,0.442,4001.9,4001.8,2.9529755]
[1760911083720,0.001,4001.9,4001.8,2.9529755]
[1760911083954,0.001,4001.9,4001.8,3.52315763]
[1760911084108,0.001,4001.9,4001.8,7.34315763]
[1760911084316,0.001,4001.9,4001.8,7.31816888]
[1760911085454,0.001,4001.9,4001.8,7.44296888]
[1760911085754,0.001,4001.9,4001.8,9.69396888]
[1760911090554,0.001,4001.9,4001.8,7.96596888]
[1760911094492,0.001,4001.9,4001.8,12.64705575]
[1760911098385,0.001,4001.9,4001.8,12.64905575]
[1760911112450,0.001,4001.9,4001.8,13.92745575]
[1760911113743,0.0685,4001.9,4001.8,13.92745575]
[1760911113943,0.09900001,4001.9,4001.8,17.07045575]
[1760911114246,0.09900001,4001.9,4001.8,17.32085575]
[1760911114451,0.09900001,4001.9,4001.8,17.07045575]
[1760911114623,1e-08,4001.9,4001.8,13.92745575]
[1760911115225,1e-08,4001.9,4001.8,10.10745575]
[1760911115425,1e-08,4002.2,4002.1,2.49868818]
[1760911115838,1e-08,4002.2,4002.1,2.18635216]
[1760911120432,1e-08,4002.2,4001.8,0.002]
[1760911120759,1e-08,4002.2,4002.0,2.49872681]
[1760911121657,1e-08,4002.2,4002.1,2.49868818]
[1760911126629,1e-08,4002.2,4002.1,4.24423556]
[1760911126861,1e-08,4002.2,4002.1,4.19461407]
[1760911127066,1e-08,4002.2,4002.1,4.31941407]
[1760911129264,1e-08,4002.2,4002.1,4.34440095]
[1760911129474,1e-08,4002.6,4002.5,2.49843847]
[1760911129686,1e-08,4002.6,4002.5,6.6507961]
[1760911129979,1e-08,4002.6,4002.5,7.2051961]
[1760911130140,1e-08,4002.6,4002.5,7.30534494]
[1760911130544,0.39173522,4004.6,4002.7,0.6336]
[1760911130892,0.39173522,4004.6,4002.5,13.45662025]
[1760911130893,0.0995,4005.0,4004.7,2.49701714]
[1760911131048,0.0995,4005.0,4004.3,3.90251378]
[1760911131374,0.1476,4005.1,4005.0,2.4968789]
[1760911132147,0.04351344,4005.8,4005.4,2.49657342]
[1760911132458,0.2456,4006.2,4004.5,0.4296]
[1760911132459,0.099,4005.7,4005.1,2.49679474]
[1760911132776,0.1481,4005.9,4004.5,1.728]
[1760911132777,0.11995398,4005.6,4004.8,2.49699811]
[1760911132982,0.02095398,4005.6,4004.8,2.49699811]
[1760911133276,0.099,4005.5,4004.9,2.49693485]
[1760911133444,0.099,4005.4,4004.9,2.49693485]
[1760911133947,0.099,4005.3,4004.9,2.49693485]
[1760911134145,0.1481,4005.9,4004.9,2.49693485]
[1760911134349,0.33351,4005.8,4004.9,2.49693485]
[1760911134554,0.099,4005.7,4004.9,2.49693485]
[1760911135582,0.099,4005.7,4004.5,3.90251378]
[1760911135796,0.23451,4005.8,4005.2,2.49674297]
[1760911135953,0.001,4005.5,4005.2,2.49674297]
[1760911136686,0.001,4005.5,4005.3,2.49668521]
[1760911136988,0.001,4005.5,4005.4,6.39914333]
[1760911137196,0.001,4005.5,4005.4,10.64874333]
[1760911137398,0.001,4005.5,4005.4,10.88325333]
[1760911138989,0.001,4005.5,4005.4,7.06325333]
[1760911140558,0.001,4005.5,4005.4,7.18805333]
[1760911141068,0.001,4005.5,4005.4,2.85593955]
[1760911141602,0.001,4005.5,4005.3,3.82]
[1760911141603,0.101,4005.5,4005.3,3.82]
[1760911141771,0.101,4005.5,4004.9,0.1248]
[1760911141772,0.1,4005.4,4005.2,0.10009922]
[1760911142089,0.1248,4004.9,4004.1,0.1248]
[1760911142315,0.1248,4004.9,4002.8,4.13248587]
[1760911142316,0.1248,4004.7,4004.3,0.1248]
[1760911142519,0.1248,4004.7,4004.2,3.90251378]
[1760911142691,0.1248,4005.3,4004.6,0.1248]
[1760911143012,1.646,4005.2,4005.0,2.49682237]
[1760911143220,1.646,4005.2,4005.1,2.49681655]
[1760911145415,0.1248,4005.3,4005.2,2.49675421]
[1760911145590,0.001,4005.5,4005.4,2.49662955]
[1760911145925,0.001,4005.5,4005.4,2.99596793]
[1760911146214,0.001,4005.5,4005.4,3.88706793]
[1760911146633,0.001,4005.5,4005.4,2.94362955]
[1760911146803,0.001,4005.5,4005.4,3.38772955]
[1760911147517,0.001,4005.5,4005.4,2.94362955]
[1760911147834,0.001,4005.5,4005.4,2.49662955]
[1760911148584,0.001,4005.5,4004.2,1.728]
[1760911148827,0.001,4005.5,4005.3,2.49665392]
[1760911150933,0.001,4005.5,4004.9,0.75074981]
[1760911151135,0.0995,4005.4,4004.9,2.49692522]
[1760911151420,0.001,4005.5,4004.9,2.49692522]
[1760911151638,0.001,4005.5,4004.7,0.75078738]
[1760911152237,0.001,4005.5,4005.3,2.49668281]
[1760911153116,0.001,4005.5,4005.4,2.49662955]
[1760911154650,0.001,4005.5,4005.2,2.49671075]
[1760911154945,0.001,4005.5,4005.1,2.49678427]
[1760911155335,0.001,4005.5,4005.2,2.49675207]
[1760911155543,0.1248,4005.3,4005.2,2.49675207]
[1760911155748,0.1248,4005.3,4005.1,2.49680528]
[1760911156825,0.1248,4005.3,4005.2,2.49675421]
[1760911158883,0.001,4005.5,4005.1,2.49680915]
[1760911159168,0.32585,4005.5,4005.1,2.49680915]
[1760911160575,0.32585,4005.5,4005.2,2.49673124]
[1760911161275,0.32585,4005.5,4005.3,2.496689]
[1760911161437,0.32585,4005.5,4005.2,2.49673865]
[1760911161971,0.02095398,4005.4,4004.1,0.233]
[1760911162175,0.5222804,4005.3,4004.6,2.49711775]
[1760911162345,0.5222804,4005.3,4004.7,2.4970621]
[1760911162541,0.5222804,4005.3,4004.5,2.49713346]
[1760911162736,0.5222804,4005.3,4004.1,0.6653]
[1760911163141,0.5222804,4005.3,4004.6,2.49709572]
[1760911163343,0.50727166,4005.2,4004.7,2.49706398]
[1760911163561,0.50727166,4005.2,4004.8,2.4970025]
[1760911164074,0.54323438,4005.3,4004.9,2.49692555]
[1760911165575,0.5222804,4005.3,4004.9,2.49692555]
[1760911167370,0.5222804,4005.3,4004.7,2.497062]
[1760911167571,0.1471,4004.8,4003.6,0.4323]
[1760911167875,0.1471,4004.8,4003.7,2.49766558]
[1760911167876,1.728,4004.6,4003.7,2.49766558]
[1760911168257,0.1,4004.5,4003.4,0.4323]
[1760911168458,1.728,4004.4,4003.4,2.49786251]
[1760911168681,1.728,4004.4,4003.0,0.233]
[1760911168682,0.12095398,4004.3,4003.5,2.49780705]
[1760911168880,0.12095398,4004.3,4003.2,2.49799905]
[1760911168881,0.1248,4003.7,4003.4,2.4978345]
[1760911169074,4.878,4003.6,4003.5,2.49781441]
[1760911169583,4.878,4003.6,4003.5,2.93011441]
[1760911169752,3.15,4003.6,4003.5,3.55448825]
[1760911169955,0.1248,4004.2,4004.1,2.49744012]
[1760911170159,0.001,4005.5,4005.3,2.49665634]
[1760911170457,0.001,4005.5,4005.4,2.49662955]
[1760911171782,0.1248,4005.4,4005.3,2.49668736]
[1760911171985,0.001,4005.5,4005.3,2.49668736]
[1760911172796,0.001,4005.5,4004.6,2.4971283]
[1760911172797,0.001,4005.5,4005.4,2.49662955]
[1760911173155,0.001,4005.5,4005.4,2.92892955]
[1760911175197,0.001,4005.5,4005.2,2.49669623]
[1760911175371,0.1248,4005.2,4005.1,2.49676772]
[1760911176665,0.1248,4005.2,4004.7,2.49704152]
[1760911176869,0.001,4005.5,4004.9,2.49693252]
[1760911177066,0.1013,4005.4,4004.1,0.352]
[1760911177267,0.1248,4004.5,4004.2,2.49737775]
[1760911177793,0.1248,4004.5,4004.1,2.49743191]
[1760911177983,0.1248,4004.2,4004.1,2.49743191]
[1760911179757,0.1248,4004.2,4004.1,3.17313191]
[1760911182349,0.227,4004.2,4003.9,2.49755482]
[1760911182644,0.1248,4003.9,4003.1,0.1248]
[1760911182844,0.1022,4004.1,4003.8,2.4976102]
[1760911183153,0.1022,4004.1,4003.9,2.49754962]
[1760911183314,0.1022,4004.1,4003.1,0.5761]
[1760911183507,0.1248,4003.6,4003.5,2.49781441]
[1760911185227,0.1248,4003.6,4003.5,2.94911441]
[1760911185800,0.1248,4003.6,4003.5,2.95111441]
[1760911186525,0.1248,4003.6,4003.5,3.4960159]